{"text_format":"1","workbook":"xlsx","n_sheets":17,"sheets":["PRINCIPAL","aux_admin","1 COMPOSIÇÃO DO NSGA","2 ACESSO A TERRA","1 FICHA DE REGISTRO","DADOS","3 LINHA DO TEMPO","4 SUBSISTEMAS","5 DIVISÃO SOCIAL DO TRABALHO","DIVISAO","6 ANÁLISE QUALITATIVA","AUTONOMIA","RESPONSIVIDADE","INTEGRAÇÃO SOCIAL","PROTAGONISMO DAS MULHERES","PROTAGONISMO DA JUVENTU","SÍNTESE"],"not_rendered":{"charts":6,"images":20,"macros":1,"external_links":0,"defined_names":0,"comments":8,"pivot_tables":0},"unopened":[],"bounds":{"document_bytes":16777216,"sheet_cells":100000,"rows_first":2000,"rows_last":500,"rows_between":2000,"halvings":0,"cell_chars":16384,"cell_head_chars":4096},"cells_cut":0,"cells_raw":0,"read":"whole","date_system":"1900"}

{"sheet":"PRINCIPAL","index":0,"n_rows":20,"n_cols":14,"rows_kept":20,"cut":false,"hidden":false,"merged":[[1,2,1,15],[14,0,15,0],[16,0,17,0],[18,0,19,0],[4,0,7,0],[5,11,6,17],[8,4,9,17],[12,13,13,17],[15,11,16,17],[19,13,20,17],[19,12,20,12],[19,10,20,11],[18,2,18,6],[19,6,20,6],[19,7,20,8],[19,9,20,9],[2,5,2,14],[8,0,9,0],[10,0,11,0],[12,0,13,0],[11,2,11,7],[8,2,9,3],[12,11,13,12],[19,4,20,4],[15,2,16,3],[15,4,16,6],[15,8,16,10],[5,2,6,4],[5,5,6,6],[5,8,6,10],[12,2,13,2],[12,3,13,3],[12,5,13,6],[12,7,13,9],[19,2,20,3]]}
[]
[null,null,"ANÁLISE DE SUSTENTABILIDADE "]
[null,null,null,null,null,"Método Lume -  Análise Qualitativa"]
["2023-09-06"]
["USE O MENU ABAIXO PARA NAVEGAR NO SISTEMA"]
[null,null,"DATA DA ENTREVISTA",null,null,"2022-04-30",null,null,"RESPONSÁVEL PELA ENTREVISTA",null,null,"Marcio"]
[]
[]
["COMPOSIÇÃO DO NSGA",null,"NSGA",null,"Família 1"]
[]
["ACESSO A TERRA"]
[null,null,"INFORMAÇÕES DO NSGA"]
["LINHA DO TEMPO",null,"UF","PB",null,"MUNICÍPIO",null,"Solânea",null,null,null,"DISTRITO"]
[]
["SUBSISTEMAS"]
[null,null,"COMUNIDADE",null,"Gameleira",null,null,null,"NOME DA PROPRIEDADE",null,null,"Gameleira"]
["DIVISÃO SOCIAL DO TRABALHO"]
[]
["ANÁLISE QUALITATIVA",null,"COORDENADAS DO ESTABELECIMENTO"]
[null,null,"DISTÂNCIA A SEDE DO MUNICIPIO",null,"12km",null,"LATITUDE",54545,null,"LONGITUDE",-45454,null,"ALTITUDE",456]

{"sheet":"aux_admin","index":1,"n_rows":1,"n_cols":2,"rows_kept":1,"cut":false,"hidden":true,"merged":[]}
["senha","Lume@2023"]

{"sheet":"1 COMPOSIÇÃO DO NSGA","index":2,"n_rows":19,"n_cols":8,"rows_kept":19,"cut":false,"hidden":false,"merged":[[0,0,3,7],[7,6,7,7],[7,1,7,4],[10,0,10,7],[11,0,11,7]]}
["COMPOSIÇÃO DO NSGA"]
[]
[]
[]
[]
[]
[]
["NSGA:",{"$f":"PRINCIPAL!E9","v":"Família 1"},null,null,null,"PROPRIEDADE:",{"$f":"PRINCIPAL!L16","v":"Gameleira"}]
[]
["MUNICÍPIO:",{"$f":"PRINCIPAL!H13","v":"Solânea"},"UF:",{"$f":"PRINCIPAL!D13","v":"PB"},"DISTRITO:",{"$f":"IF(PRINCIPAL!N13=\"\",\"\",PRINCIPAL!N13)","v":""},"COMUNIDADE:",{"$f":"PRINCIPAL!E16","v":"Gameleira"}]
[]
["COMPOSIÇÃO DO NSGA (NÚCLEO SOCIAL DE GESTÃO DO AGROECOSSISTEMA)"]
["N","Nome","Parentesco","Sexo","Data de Nascimento","Reside no Agroecossistema","Tempo Dedicado ao Agroecossistema","Ocupação fora do Agroecossistema"]
[1,"Vera Lucena Santos"," Esposo (a)","F","1987-05-01","SIM","Integral"]
[2,"Luis Lucena"," Esposo (a)","M",{"$f":"E14-400","v":"1986-03-27"},"SIM","Integral"]
[3,"Leila Lucena","Filho(a)","F","2023-01-01","SIM","Pessoa com limitação para trabalhar"]
[4,"Lara Lucena","Filho(a)","F",{"$f":"E15","v":"1986-03-27"},"SIM","Parcial","Estudante"]
[5,"Lidio Lucena","Filho(a)","M",{"$f":"E17","v":"1986-03-27"},"SIM","Parcial","Estudante"]
["nsga"]

{"sheet":"2 ACESSO A TERRA","index":3,"n_rows":18,"n_cols":8,"rows_kept":18,"cut":false,"hidden":false,"merged":[[12,3,12,4],[14,1,14,2],[14,3,14,4],[13,1,13,2],[12,1,12,2],[17,0,18,6],[17,7,18,7],[15,3,15,4],[15,1,15,2],[13,3,13,4],[0,0,3,7],[10,0,10,7],[7,1,7,4],[7,6,7,7],[11,0,11,7]]}
["ACESSO À TERRA"]
[]
[]
[]
[]
[]
[]
["NSGA:",{"$f":"PRINCIPAL!E9","v":"Família 1"},null,null,null,"PROPRIEDADE:",{"$f":"PRINCIPAL!L16","v":"Gameleira"}]
[]
["MUNICÍPIO:",{"$f":"PRINCIPAL!H13","v":"Solânea"},"UF:",{"$f":"PRINCIPAL!D13","v":"PB"},"DISTRITO:",{"$f":"IF(PRINCIPAL!N13=\"\",\"\",PRINCIPAL!N13)","v":""},"COMUNIDADE:",{"$f":"PRINCIPAL!E16","v":"Gameleira"}]
[]
["ACESSO À TERRA E OUTROS ESPAÇOS NATURAIS"]
["ÁREA","DENOMINAÇÃO DA TERRA",null,"FORMA DE ACESSO A TERRA",null,"MUNICÍPIO","DISTÂNCIA DA ÀREA AO LOCAL DE MORADIA (km)","DIMENSÃO DA ÁREA (hectares)"]
[1,"Sitio Lagoa Seca",null,"Própria",null,"Pocinhos",0,21]
[2,"Sítio Beneficio",null,"Própria",null,"Pocinhos",1.5,11]
[3]
["acesso"]
["TOTAL",null,null,null,null,null,null,{"$f":"SUM(H14:H17)","v":32}]

{"sheet":"1 FICHA DE REGISTRO","index":4,"n_rows":25,"n_cols":17,"rows_kept":25,"cut":false,"hidden":true,"merged":[[24,10,24,15],[1,13,1,15],[25,10,25,15],[18,14,18,15],[21,14,21,15],[19,14,19,15],[22,14,22,15],[0,0,3,10],[1,11,1,12],[2,11,2,12],[2,13,2,15],[15,10,15,16],[9,15,10,15],[9,16,10,16],[9,0,10,0],[24,1,24,2],[23,1,23,2],[23,14,23,15],[16,1,16,2],[10,7,10,8],[17,1,17,2],[18,1,18,2],[19,1,19,2],[15,0,15,8],[9,10,10,10],[9,12,10,12],[9,1,10,1],[10,3,10,4],[10,5,10,6],[9,3,9,4],[7,0,7,3],[7,4,7,16],[21,1,21,2],[22,1,22,2],[20,1,20,2],[11,3,14,6],[11,12,14,13],[16,14,16,15],[17,14,17,15],[20,14,20,15],[9,11,10,11]]}
["FICHA DE REGISTRO DE INFORMAÇÕES DE CAMPO"]
[null,null,null,null,null,null,null,null,null,null,null,"DATA DA ENTREVISTA",null,"22 DE OUTUBRO DE 2022"]
[null,null,null,null,null,null,null,null,null,null,null,"TÉCNICO RESPONSÁVEL",null,"Giovana opes e Adriana Vieira"]
[]
[]
[]
[]
["NSGA",null,null,null,"Família Leal"]
[]
["UF","MS","MUNICIPIO:","APODI",null,"DISTRITO:","ALGODAO","COMUNIDADE:","SITIO MELANCIAS",null,"DISTÂNCIA À SEDE DO MUNICIPIO","12 KM","COORDENADAS DO ESTABELECIMENTO ","LATITUDE",5741677,"ALTITUDE METROS","720 MTS"]
[null,null,"DISTRITO:",null,null,"NOME DA PROPRIEDADE:",null,"MARIA OSANA GURGEL DE OLIVEIRA",null,null,null,null,null,"LONGITUDE",-37843585]
[]
[]
[]
[]
[null,null,null,null,null,null,null,null,null,null,"ACESSO Á TERRA E OUTROS ESPAÇOS NATURAIS"]
["N","Nome",null,"Parentesco","Sexo","Data de Nascimento","Reside no Agroecossistema","Tempo Dedicado ao Acroecossistema","Ocupação fora do Agroecossistema",null,"ÀREA","DENOMINAÇÃO DA ÁREA","FORMA DE ACESSO À TERRA","MUNICIPIO","DISTÂNCIA DA ÀREA AO LOCAL DE MORADIA (KM)",null,"DIMENSÃO em (há)"]
[1,"Maria Osana Gurgel de Oliveira",null," Esposo (a)","M","1987-11-21","SIM","Parcial",null,null,1,null,"Arrendamento","APODI","0,0 km",null,30]
[2,"Laerte de Oliveira Costa",null," Esposo (a)","F",null,"NÃO","Não Trabalha",null,null,2,"Pasto","Comodato","Apodi","6 km",null,0.6]
[3,"Braz Antonio de Oliveira Costa",null,"Avô (ó)","M",null,"SIM","Parcial"]
[4,"Mateus leal",null,"Filho(a)","F",null,"NÃO","Integral"]
[5,"Marcos sales",null,"Mãe","M",null,"SIM","Pessoa com limitação para trabalhar"]
[6,"José gomes",null,"Pai","F",null,"NÃO","Parcial","Estudante"]
[7,"Amanda vieira",null,"Mãe","M",null,"SIM","Parcial"]
[8,"Berenice leal",null,"Pai","F",null,"NÃO","Não Trabalha",null,null,"TOTAL DA ÁREA",null,null,null,null,null,{"$f":"SUM(Q18:Q24)","v":30.6}]

{"sheet":"DADOS","index":5,"n_rows":32,"n_cols":17,"rows_kept":32,"cut":false,"hidden":true,"merged":[[2,2,2,5],[1,7,1,8],[2,16,2,19]]}
[]
[null,null,null,null,null,null,null,"SEXO ",null,null,"Parentesco"]
[null,null,"ESTADOS E CAPITAIS",null,null,null,null,"M","MASCULINO",null," Esposo (a)",null,null,"SIGAS UF",null,null,"tempo dedicado ao agroecossistema"]
[null,null,"Sigla","Capital","Gentílico",null,null,"F","FEMININO",null,"Filho(a)",null,null,null,null,null,"Integral"]
[null,null,"Acre","AC","Rio Branco","acriano",null,null,null,null,"Primo(a)",null,null,null,null,null,"Parcial"]
[null,null,"Alagoas","AL","Maceió","alagoano",null,null,null,null,"Mãe",null,null,"AC",null,null,"Não Trabalha"]
[null,null,"Amapá","AP","Macapá","amapaense",null,null,null,null,"Pai",null,null,"AL",null,null,"Pessoa com limitação para trabalhar"]
[null,null,"Amazonas","AM","Manaus","Amazonense",null,null,null,null,"Avô (ó)",null,null,"AP"]
[null,null,"Bahia","BA","Salvador","baiano",null,null,null,null,"Tio(a)",null,null,"AM"]
[null,null,"Ceará","CE","Fortaleza","cearense",null,null,null,null,"Agregado",null,null,"BA"]
[null,null,"Distrito Federal","DF","Brasília","brasiliense",null,null,null,null,"Outros",null,null,"CE"]
[null,null,"Espírito Santo","ES","Vitória","capixaba ou espírito-santense",null,null,null,null,null,null,null,"DF"]
[null,null,"Goiás","GO","Goiânia","goiano",null,null,null,null,null,null,null,"ES",null,null,"reside no agroecossistema"]
[null,null,"Maranhão","MA","São Luís","maranhense",null,null,null,null,null,null,null,"GO",null,null,"SIM"]
[null,null,"Mato Grosso","MT","Cuiabá","mato-grossense",null,null,null,null,null,null,null,"MA",null,null,"NÃO"]
[null,null,"Mato Grosso do Sul","MS","Campo Grande","sul-mato-grossense ou mato-grossense-do-sul",null,null,null,null,null,null,null,"MT"]
[null,null,"Minas Gerais","MG","Belo Horizonte","mineiro",null,null,"Forma de acesso a terra",null,null,null,null,"MS"]
[null,null,"Paraná","PR","Curitiba","paranaense",null,null,"Própria",null,null,null,null,"MG"]
[null,null,"Paraíba","PB","João Pessoa","paraibano",null,null,"Posse",null,null,null,null,"PR"]
[null,null,"Pará","PA","Belém","paraense",null,null,"Arrendamento",null,null,null,null,"PB"]
[null,null,"Pernambuco","PE","Recife","pernambucano",null,null,"Meação",null,null,null,null,"PA"]
[null,null,"Piauí","PI","Teresina","piauiense",null,null,"Parceria",null,null,null,null,"PE"]
[null,null,"Rio Grande do Norte","RN","Natal","potiguar, norte-rio-grandense, rio-grandense-do-norte",null,null,"Cessão",null,null,null,null,"PI"]
[null,null,"Rio Grande do Sul","RS","Porto Alegre","gaúcho ou sul-rio-grandense",null,null,"Comodato",null,null,null,null,"RN"]
[null,null,"Rio de Janeiro","RJ","Rio de Janeiro","fluminense",null,null,"Direito de uso",null,null,null,null,"RS"]
[null,null,"Rondônia","RO","Porto Velho","rondoniense ou rondoniano",null,null,"Uso comunitário",null,null,null,null,"RJ"]
[null,null,"Roraima","RR","Boa Vista","roraimense",null,null,"Outros",null,null,null,null,"RO"]
[null,null,"Santa Catarina","SC","Florianópolis","catarinense ou barriga-verde",null,null,null,null,null,null,null,"RR"]
[null,null,"Sergipe","SE","Aracaju","sergipano ou sergipense",null,null,null,null,null,null,null,"SC"]
[null,null,"São Paulo","SP","São Paulo","paulista",null,null,null,null,null,null,null,"SE"]
[null,null,"Tocantins","TO",null,null,null,null,null,null,null,null,null,"SP"]
[null,null,null,null,null,null,null,null,null,null,null,null,null,"TO"]

{"sheet":"3 LINHA DO TEMPO","index":6,"n_rows":20,"n_cols":15,"rows_kept":20,"cut":false,"hidden":false,"merged":[[5,10,5,11],[0,2,2,7],[13,0,13,1],[14,0,19,0],[7,0,12,0],[5,3,5,4]]}
[15,null,"LINHA DO TEMPO DO AGROECOSSISTEMA"]
[null,null,null,null,null,null,null,null,null,null,null,null,null,null,"fim_colunas"]
[]
[]
[]
[null,null,"NSGA:",{"$f":"PRINCIPAL!E9","v":"Família 1"},null,"Municipio:",{"$f":"'1 COMPOSIÇÃO DO NSGA'!B10","v":"Solânea"},"Distrito",{"$f":"'1 COMPOSIÇÃO DO NSGA'!F10","v":""},"NOME DA PROPRIEDADE:",{"$f":"PRINCIPAL!L16","v":"Gameleira"},null,"DISTÂNCIA À SEDE DO MUNICÍPIO",{"$f":"PRINCIPAL!E20","v":"12km"}]
[]
["   AGROECOSSISTEMA","Outros",""]
[null,"Capital fundiário e equipamentos"]
[null,"Produção animal"]
[null,"Produção vegetal"]
[null,"Sistema peridoméstico"]
[null,"Ciclo de vida da família"]
["ANO"]
["   CONTEXTO EXTERNO","Participação na gestão de bens comuns"]
[null,"Acesso a conhecimento"]
[null,"Integração a espaços político-organizativos"]
[null,"Acesso aos mercados"]
[null,"Acesso a políticas públicas"]
[null,"Outros"]

{"sheet":"4 SUBSISTEMAS","index":7,"n_rows":18,"n_cols":8,"rows_kept":18,"cut":false,"hidden":false,"merged":[[0,0,3,7],[7,2,7,3],[7,4,7,5],[11,0,11,7],[17,2,17,3],[13,3,13,7],[12,3,12,7],[14,0,14,2],[13,0,13,2],[14,3,14,7],[15,3,15,7],[16,3,16,7],[12,0,12,2],[16,0,16,2],[15,0,15,2]]}
["SUBSISTEMAS"]
[]
[]
[]
[]
[]
[]
["NSGA:",{"$f":"PRINCIPAL!E9","v":"Família 1"},"PROPRIEDADE:",null,{"$f":"PRINCIPAL!L16","v":"Gameleira"},null,"DATA ENTREVISTA:",{"$f":"PRINCIPAL!F6","v":"2022-04-30"}]
[]
["MUNICÍPIO:",{"$f":"PRINCIPAL!H13","v":"Solânea"},"UF:",{"$f":"PRINCIPAL!D13","v":"PB"},"DISTRITO:",{"$f":"PRINCIPAL!N13","v":0},"COMUNIDADE:",{"$f":"PRINCIPAL!E16","v":"Gameleira"}]
[]
["SUBSISTEMAS PRODUTIVOS"]
["SUBSISTEMA",null,null,"DESCRIÇÃO (área ocupada, número de animais, principais produções etc)."]
[]
[]
[]
[]
["subsistema"]

{"sheet":"5 DIVISÃO SOCIAL DO TRABALHO","index":8,"n_rows":31,"n_cols":15,"rows_kept":31,"cut":false,"hidden":false,"merged":[[0,0,3,12],[30,0,30,1],[21,0,23,0],[26,0,28,0],[6,17,8,17],[4,0,4,1],[7,0,11,0],[14,0,18,0]]}
["DIVISÃO DO TRABALHO"]
[]
[]
[]
[null,null,"Tempo dedicado",null,null,null,null,null,null,"Tomada de decisão"]
["NSGA:",{"$f":"PRINCIPAL!E9","v":"Família 1"},"Vera Lucena Santos","Luis Lucena","Lara Lucena","Lidio Lucena","Maria Macena","referência",null,"Vera Lucena Santos","Luis Lucena","Lara Lucena","Lidio Lucena","Maria Macena","referência"]
["subsistema_inicio",null," Esposo (a)"," Esposo (a)","Filho(a)","Filho(a)","Filho(a)",null,null," Esposo (a)"," Esposo (a)","Filho(a)","Filho(a)","Filho(a)"]
["Trabalho mercantil e autoconsumo",{"$f":"IF('4 SUBSISTEMAS'!A14=0,\" \",'4 SUBSISTEMAS'!A14)","v":" "},3,2,1,null,null,null,null,null,0,1]
[null,{"$f":"IF('4 SUBSISTEMAS'!A15=0,\" \",'4 SUBSISTEMAS'!A15)","v":" "},3,2,1,null,null,null,null,null,0,1]
[null,{"$f":"IF('4 SUBSISTEMAS'!A16=0,\" \",'4 SUBSISTEMAS'!A16)","v":" "},3,2,1,null,null,null,null,null,0,1]
[null,{"$f":"IF('4 SUBSISTEMAS'!A17=0,\" \",'4 SUBSISTEMAS'!A17)","v":" "},3,2,1,null,null,null,null,null,0]
[null,"Comercialização",3,2,3]
["subsistema"]
["trab_dom_inicio"]
["Trabalho doméstico e cuidados","Cuidar das crianças"]
[null,"Cuidar dos idosos"]
[null,"Fazer comida"]
[null,"Limpar a casa"]
[null,"Lavar roupas",null,1,2,null,null,null,null,null,1,1]
["trab_dom"]
["part_social_inicio"]
["Participação social","Assembleia",null,null,null,null,null,null,null,null,1]
[null,"outros"]
[]
["part_social"]
["pluriatividade_inicio"]
["Pluriatividade","Pedreiro",0,0,null,1]
[null,"Agente de Saúde",3,1,null,null,null,null,null,2,0,null,1]
[]
["pluriatividade"]
["TOTAL",null,{"$f":"SUM(C8:C30)","v":18},12,9,1,0,0,null,{"$f":"SUM(J8:J30)","v":2},2,4,1,0,0]

{"sheet":"DIVISAO","index":9,"n_rows":32,"n_cols":20,"rows_kept":32,"cut":false,"hidden":true,"merged":[[28,0,28,2],[30,0,30,2],[22,0,26,1],[9,0,19,1],[5,3,6,10],[5,12,6,19],[6,0,7,0],[6,1,7,2],[0,0,1,14],[0,16,1,19]]}
["AGRICULTURA FAMILIAR E AGROECOOGIA"]
[]
[]
[]
[]
[null,null,null,"Tempo dedicado",null,null,null,null,null,null,null,null,"Tomada de decisão"]
["NSGA:",{"$f":"'1 FICHA DE REGISTRO'!E8","v":"Família Leal"}]
[null,null,null,{"$f":"IFERROR(LEFT('1 COMPOSIÇÃO DO NSGA'!#REF!,SEARCH(\" \",'1 COMPOSIÇÃO DO NSGA'!#REF!,1)-1),\" \")","v":" "},{"$f":"IFERROR(LEFT('1 COMPOSIÇÃO DO NSGA'!#REF!,SEARCH(\" \",'1 COMPOSIÇÃO DO NSGA'!#REF!,1)-1),\" \")","v":" "},{"$f":"IFERROR(LEFT('1 COMPOSIÇÃO DO NSGA'!#REF!,SEARCH(\" \",'1 COMPOSIÇÃO DO NSGA'!#REF!,1)-1),\" \")","v":" "},{"$f":"IFERROR(LEFT('1 COMPOSIÇÃO DO NSGA'!#REF!,SEARCH(\" \",'1 COMPOSIÇÃO DO NSGA'!#REF!,1)-1),\" \")","v":" "},{"$f":"IFERROR(LEFT('1 COMPOSIÇÃO DO NSGA'!#REF!,SEARCH(\" \",'1 COMPOSIÇÃO DO NSGA'!#REF!,1)-1),\" \")","v":" "},{"$f":"IFERROR(LEFT('1 COMPOSIÇÃO DO NSGA'!#REF!,SEARCH(\" \",'1 COMPOSIÇÃO DO NSGA'!#REF!,1)-1),\" \")","v":" "},{"$f":"IFERROR(LEFT('1 COMPOSIÇÃO DO NSGA'!#REF!,SEARCH(\" \",'1 COMPOSIÇÃO DO NSGA'!#REF!,1)-1),\" \")","v":" "},{"$f":"IFERROR(LEFT('1 COMPOSIÇÃO DO NSGA'!#REF!,SEARCH(\" \",'1 COMPOSIÇÃO DO NSGA'!#REF!,1)-1),\" \")","v":" "},null,{"$f":"IFERROR(LEFT('1 COMPOSIÇÃO DO NSGA'!#REF!,SEARCH(\" \",'1 COMPOSIÇÃO DO NSGA'!#REF!,1)-1),\" \")","v":" "},{"$f":"IFERROR(LEFT('1 COMPOSIÇÃO DO NSGA'!#REF!,SEARCH(\" \",'1 COMPOSIÇÃO DO NSGA'!#REF!,1)-1),\" \")","v":" "},{"$f":"IFERROR(LEFT('1 COMPOSIÇÃO DO NSGA'!#REF!,SEARCH(\" \",'1 COMPOSIÇÃO DO NSGA'!#REF!,1)-1),\" \")","v":" "},{"$f":"IFERROR(LEFT('1 COMPOSIÇÃO DO NSGA'!#REF!,SEARCH(\" \",'1 COMPOSIÇÃO DO NSGA'!#REF!,1)-1),\" \")","v":" "},{"$f":"IFERROR(LEFT('1 COMPOSIÇÃO DO NSGA'!#REF!,SEARCH(\" \",'1 COMPOSIÇÃO DO NSGA'!#REF!,1)-1),\" \")","v":" "},{"$f":"IFERROR(LEFT('1 COMPOSIÇÃO DO NSGA'!#REF!,SEARCH(\" \",'1 COMPOSIÇÃO DO NSGA'!#REF!,1)-1),\" \")","v":" "},{"$f":"IFERROR(LEFT('1 COMPOSIÇÃO DO NSGA'!#REF!,SEARCH(\" \",'1 COMPOSIÇÃO DO NSGA'!#REF!,1)-1),\" \")","v":" "},{"$f":"IFERROR(LEFT('1 COMPOSIÇÃO DO NSGA'!#REF!,SEARCH(\" \",'1 COMPOSIÇÃO DO NSGA'!#REF!,1)-1),\" \")","v":" "}]
[null,null,null,{"$f":"IF('1 COMPOSIÇÃO DO NSGA'!C14=0,\" \",'1 COMPOSIÇÃO DO NSGA'!C14)","v":" Esposo (a)"},{"$f":"IF('1 COMPOSIÇÃO DO NSGA'!C15=0,\" \",'1 COMPOSIÇÃO DO NSGA'!C15)","v":" Esposo (a)"},{"$f":"IF('1 COMPOSIÇÃO DO NSGA'!C16=0,\" \",'1 COMPOSIÇÃO DO NSGA'!C16)","v":"Filho(a)"},{"$f":"IF('1 COMPOSIÇÃO DO NSGA'!C17=0,\" \",'1 COMPOSIÇÃO DO NSGA'!C17)","v":"Filho(a)"},{"$f":"IF('1 COMPOSIÇÃO DO NSGA'!C18=0,\" \",'1 COMPOSIÇÃO DO NSGA'!C18)","v":"Filho(a)"},{"$f":"IF('1 COMPOSIÇÃO DO NSGA'!#REF!=0,\" \",'1 COMPOSIÇÃO DO NSGA'!#REF!)","v":{"$error":"#REF!"}},{"$f":"IF('1 COMPOSIÇÃO DO NSGA'!#REF!=0,\" \",'1 COMPOSIÇÃO DO NSGA'!#REF!)","v":{"$error":"#REF!"}},{"$f":"IF('1 COMPOSIÇÃO DO NSGA'!#REF!=0,\" \",'1 COMPOSIÇÃO DO NSGA'!#REF!)","v":{"$error":"#REF!"}},null,{"$f":"IF('1 COMPOSIÇÃO DO NSGA'!C14=0,\" \",'1 COMPOSIÇÃO DO NSGA'!C14)","v":" Esposo (a)"},{"$f":"IF('1 COMPOSIÇÃO DO NSGA'!C15=0,\" \",'1 COMPOSIÇÃO DO NSGA'!C15)","v":" Esposo (a)"},{"$f":"IF('1 COMPOSIÇÃO DO NSGA'!C16=0,\" \",'1 COMPOSIÇÃO DO NSGA'!C16)","v":"Filho(a)"},{"$f":"IF('1 COMPOSIÇÃO DO NSGA'!C17=0,\" \",'1 COMPOSIÇÃO DO NSGA'!C17)","v":"Filho(a)"},{"$f":"IF('1 COMPOSIÇÃO DO NSGA'!C18=0,\" \",'1 COMPOSIÇÃO DO NSGA'!C18)","v":"Filho(a)"},{"$f":"IF('1 COMPOSIÇÃO DO NSGA'!#REF!=0,\" \",'1 COMPOSIÇÃO DO NSGA'!#REF!)","v":{"$error":"#REF!"}},{"$f":"IF('1 COMPOSIÇÃO DO NSGA'!#REF!=0,\" \",'1 COMPOSIÇÃO DO NSGA'!#REF!)","v":{"$error":"#REF!"}},{"$f":"IF('1 COMPOSIÇÃO DO NSGA'!#REF!=0,\" \",'1 COMPOSIÇÃO DO NSGA'!#REF!)","v":{"$error":"#REF!"}}]
["Trabalho mercantil e autoconsumo",null,{"$f":"IF('4 SUBSISTEMAS'!#REF!=0,\" \",'4 SUBSISTEMAS'!#REF!)","v":{"$error":"#REF!"}},2,1,0,3,null,null,null,null,null,1]
[null,null,{"$f":"IF('4 SUBSISTEMAS'!A14=0,\" \",'4 SUBSISTEMAS'!A14)","v":" "}]
[null,null,{"$f":"IF('4 SUBSISTEMAS'!A15=0,\" \",'4 SUBSISTEMAS'!A15)","v":" "}]
[null,null,{"$f":"IF('4 SUBSISTEMAS'!A16=0,\" \",'4 SUBSISTEMAS'!A16)","v":" "}]
[null,null,{"$f":"IF('4 SUBSISTEMAS'!A17=0,\" \",'4 SUBSISTEMAS'!A17)","v":" "}]
[null,null,{"$f":"IF('4 SUBSISTEMAS'!#REF!=0,\" \",'4 SUBSISTEMAS'!#REF!)","v":{"$error":"#REF!"}}]
[null,null,{"$f":"IF('4 SUBSISTEMAS'!#REF!=0,\" \",'4 SUBSISTEMAS'!#REF!)","v":{"$error":"#REF!"}}]
[null,null,{"$f":"IF('4 SUBSISTEMAS'!#REF!=0,\" \",'4 SUBSISTEMAS'!#REF!)","v":{"$error":"#REF!"}}]
[null,null,{"$f":"IF('4 SUBSISTEMAS'!#REF!=0,\" \",'4 SUBSISTEMAS'!#REF!)","v":{"$error":"#REF!"}}]
[null,null,{"$f":"IF('4 SUBSISTEMAS'!#REF!=0,\" \",'4 SUBSISTEMAS'!#REF!)","v":{"$error":"#REF!"}}]
[null,null,{"$f":"IF('4 SUBSISTEMAS'!#REF!=0,\" \",'4 SUBSISTEMAS'!#REF!)","v":{"$error":"#REF!"}}]
[]
[]
["Trabalho doméstico e cuidados",null,"Cuidar das crianças"]
[null,null,"Cuidar dos idosos"]
[null,null,"Fazer comida"]
[null,null,"Limpar a casa"]
[null,null,"Lavar roupa"]
[]
["Participação social"]
[]
["Pluriatividade"]
[null,null,null,{"$f":"SUM(D10:D31)","v":2},{"$f":"SUM(E10:E31)","v":1},0,3,0,0,0,0,null,{"$f":"SUM(M10:M31)","v":1},{"$f":"SUM(N10:N31)","v":0},0,0,0,0,0,0]

{"sheet":"6 ANÁLISE QUALITATIVA","index":10,"n_rows":21,"n_cols":11,"rows_kept":21,"cut":false,"hidden":false,"merged":[[18,6,18,10],[13,1,13,12],[14,1,15,2],[18,4,18,5],[18,1,19,3],[3,1,3,12],[7,2,7,3],[0,0,0,13],[12,0,12,1],[12,2,12,3],[9,10,9,12],[7,10,7,12],[12,4,12,5],[9,2,9,3],[9,4,9,6],[7,4,7,7],[11,9,11,10],[11,11,11,12]]}
["Análise Qualitativa de Sustentabilidade"]
[]
[]
[]
[]
[]
[]
[null,null,"NSGA",null,{"$f":"PRINCIPAL!E9","v":"Família 1"},null,null,null,null,"MUNÍCIPIO",{"$f":"PRINCIPAL!H13","v":"Solânea"}]
[]
[null,null,"COMUNIDADE",null,{"$f":"PRINCIPAL!E16","v":"Gameleira"},null,null,null,null,"ESTADO",{"$f":"PRINCIPAL!D13","v":"PB"}]
[]
[null,null,null,null,null,null,null,null,null,"POSSUI JOVENS NO NSGA?"]
[]
[null,"ATRIBUTOS DE SUSTENTABILIDADE"]
[]
[]
[]
[]
[null,"PERÍODO DE ANÁLISE",null,null,null,null,"QUALIFICAÇÃO"]
[null,null,null,null,null,null,"MUITO BAIXA","BAIXA","MÉDIA","ALTA","MUITO ALTO"]
[null,2000,null,2022,null,null,1,2,3,4,5]

{"sheet":"AUTONOMIA","index":11,"n_rows":27,"n_cols":9,"rows_kept":27,"cut":false,"hidden":false,"merged":[[12,1,12,3],[13,1,13,3],[12,6,12,7],[13,6,13,7],[8,0,15,0],[8,6,8,7],[9,6,9,7],[10,6,10,7],[11,6,11,7],[11,1,11,3],[8,1,8,3],[9,1,9,3],[10,1,10,3],[0,0,2,2],[6,0,7,3],[0,3,2,9],[6,6,7,7],[6,8,7,9],[8,8,8,9],[16,6,16,7],[17,6,17,7],[18,6,18,7],[14,1,14,3],[15,1,15,3],[14,6,14,7],[15,6,15,7],[9,8,9,9],[10,8,10,9],[11,8,11,9],[12,8,12,9],[13,8,13,9],[14,8,14,9],[15,8,15,9],[17,8,17,9],[19,6,19,7],[21,8,21,9],[20,6,20,7],[16,0,21,0],[16,1,16,3],[17,1,17,3],[18,1,18,3],[19,1,19,3],[20,1,20,3],[21,1,21,3],[16,8,16,9],[21,6,21,7],[18,8,18,9],[19,8,19,9],[20,8,20,9],[25,0,25,5],[26,0,26,5],[25,6,25,9],[26,6,26,9],[24,3,24,7]]}
[null,null,null,"AUTONOMIA"]
[]
[]
[]
[]
[]
["Parâmetro",null,null,null,"ANO REFERÊNCIA","ANO ATUAL","MUDANÇAS E INOVAÇÕES NO PERÍODO",null,"JUSTIFICATIVAS"]
[null,null,null,null,{"$f":"'6 ANÁLISE QUALITATIVA'!B21","v":2000},{"$f":"'6 ANÁLISE QUALITATIVA'!D21","v":2022}]
["BASE DE RECURSOS AUTOCONTROLADA","Equipamentos/Infraestrutura",null,null,1,3]
[null,"Capacidade de Trabalho",null,null,2,5]
[null,"Forragem/Ração",null,null,2,5]
[null,"Fertilidade do Solo",null,null,2,5]
[null,"Disponibilidade de Água",null,null,2,5]
[null,"Biodiversidade",null,null,2,5]
[null,"Disponibilidade de Terra",null,null,2,5]
[null,"Autoabastecimento alimentar",null,null,2,5]
["RECURSOS PRODUTIVOS MERCANTIS","Terra de terceiros",null,null,2,5]
[null,"Sementes, mudas, mat. propag., crias",null,null,2,5]
[null,"Água",null,null,2,5]
[null,"Fertilizantes",null,null,2,5]
[null,"Forragem/Ração",null,null,2,5]
[null,"Trabalho de terceiros",null,null,2,5]
[]
[]
[null,null,null,"ÍNDICE DE AUTONOMIA (0-1)"]
[{"$f":"'6 ANÁLISE QUALITATIVA'!B21","v":2000},null,null,null,null,null,{"$f":"'6 ANÁLISE QUALITATIVA'!D21","v":2022}]
[{"$f":"((SUM(E9:E16)+SUM(E17:E22))-14)*1/56","v":0.23214285714285715},null,null,null,null,null,{"$f":"((SUM(F9:F16)+SUM(F17:F22))-14)*1/56","v":0.9642857142857143}]

{"sheet":"RESPONSIVIDADE","index":12,"n_rows":17,"n_cols":8,"rows_kept":17,"cut":false,"hidden":false,"merged":[[8,0,8,2],[8,5,8,6],[8,7,8,8],[9,0,9,2],[0,0,2,1],[0,2,2,8],[6,5,7,6],[6,7,7,8],[6,0,6,2],[12,0,12,2],[12,5,12,6],[12,7,12,8],[9,5,9,6],[9,7,9,8],[10,0,10,2],[10,5,10,6],[10,7,10,8],[11,0,11,2],[11,5,11,6],[11,7,11,8],[14,0,14,8],[15,0,15,5],[15,6,15,8],[16,0,16,5],[16,6,16,8]]}
[null,null,"RESPONSIVIDADE"]
[]
[]
[]
[]
[]
["Parâmetros",null,null,"ANO REFERÊNCIA","ANO ATUAL","MUDANÇAS E INOVAÇÕES NO PERÍODO",null,"JUSTIFICATIVAS"]
[null,null,null,{"$f":"'6 ANÁLISE QUALITATIVA'!B21","v":2000},{"$f":"'6 ANÁLISE QUALITATIVA'!D21","v":2022}]
["Biodiversidade (Planejada ou associada)",null,null,2,5]
["Diversidade de Mercados Acessados",null,null,1,5]
["Diversidade de Rendas (agrícolas e não-agrícolas)",null,null,1,5]
["Estoques de Insumos",null,null,1,5]
["Estoques Vivos",null,null,3,5]
[]
["ÍNDICE DE RESPONSIVIDADE (0-1)"]
[{"$f":"'6 ANÁLISE QUALITATIVA'!B21","v":2000},null,null,null,null,null,{"$f":"'6 ANÁLISE QUALITATIVA'!D21","v":2022}]
[{"$f":"(SUM(D9:D13)-5)*1/20","v":0.15},null,null,null,null,null,{"$f":"(SUM(E9:E13)-5)*1/20","v":1}]

{"sheet":"INTEGRAÇÃO SOCIAL","index":13,"n_rows":17,"n_cols":8,"rows_kept":17,"cut":false,"hidden":false,"merged":[[8,0,8,2],[8,5,8,6],[8,7,8,8],[9,0,9,2],[9,5,9,6],[9,7,9,8],[0,0,2,1],[0,2,2,8],[6,0,7,2],[6,5,7,6],[6,7,7,8],[16,0,16,5],[16,6,16,8],[10,7,10,8],[12,0,12,2],[12,5,12,6],[12,7,12,8],[14,0,14,8],[11,0,11,2],[11,5,11,6],[11,7,11,8],[10,0,10,2],[10,5,10,6],[15,0,15,5],[15,6,15,8]]}
[null,null,"INTEGRAÇÃO SOCIAL"]
[]
[]
[]
[]
[]
["Parâmetros",null,null,"ANO REFERÊNCIA","ANO ATUAL","MUDANÇAS E INOVAÇÕES NO PERÍODO",null,"JUSTIFICATIVAS"]
[null,null,null,{"$f":"'6 ANÁLISE QUALITATIVA'!B21","v":2000},{"$f":"'6 ANÁLISE QUALITATIVA'!D21","v":2022}]
["Participação em espaços político-organizativos",null,null,3,3]
["Acesso a políticas públicas",null,null,4,5]
["Participação em redes sociotécnicas de aprendizagem",null,null,1,4]
["Apropriação de riqueza produzida no agroecossistema pelo NSGA",null,null,2,3]
["Participação em espaços de gestão de bens comuns",null,null,3,3]
[]
["ÍNDICE DE INTEGRAÇÃO SOCIAL (0-1)"]
[{"$f":"'6 ANÁLISE QUALITATIVA'!B21","v":2000},null,null,null,null,null,{"$f":"'6 ANÁLISE QUALITATIVA'!D21","v":2022}]
[{"$f":"(SUM(D9:D13)-5)*1/20","v":0.4},null,null,null,null,null,{"$f":"(SUM(E9:E13)-5)*1/20","v":0.65}]

{"sheet":"PROTAGONISMO DAS MULHERES","index":14,"n_rows":18,"n_cols":8,"rows_kept":18,"cut":false,"hidden":false,"merged":[[10,7,10,8],[11,0,11,2],[11,5,11,6],[11,7,11,8],[0,2,2,8],[6,5,7,6],[6,7,7,8],[8,0,8,2],[8,5,8,6],[8,7,8,8],[9,0,9,2],[6,0,7,2],[9,5,9,6],[9,7,9,8],[10,0,10,2],[10,5,10,6],[15,0,15,8],[16,0,16,5],[16,6,16,8],[17,0,17,5],[17,6,17,8],[12,0,12,2],[12,5,12,6],[12,7,12,8],[13,0,13,2],[13,5,13,6],[13,7,13,8]]}
[null,null,"EQUIDADE DE GÊNERO / PROTAGONISMO DAS MULHERES"]
[]
[]
[]
[]
[]
["Parâmetro",null,null,"ANO REFERÊNCIA","ANO ATUAL","MUDANÇAS E INOVAÇÕES NO PERÍODO",null,"JUSTIFICATIVAS"]
[null,null,null,{"$f":"'6 ANÁLISE QUALITATIVA'!B21","v":2000},{"$f":"'6 ANÁLISE QUALITATIVA'!D21","v":2022}]
["Divisão sexual do trabalho doméstico e de cuidados (adultos)",null,null,2,5]
["Divisão sexual do trabalho doméstico e de cuidados (jovens)",null,null,1,2]
["Participação nas decisões de gestão do agroecossistema",null,null,2,5]
["Participação em espaços sócio-organizativos",null,null,2,5]
["Apropriação da riqueza gerada no agroecossistema",null,null,2,5]
["Acesso a políticas públicas",null,null,2,5]
[]
["ÍNDICE DE EQUIDADE DE GÊNERO / PROTAGONISMO DAS MULHERES (0-1)"]
[{"$f":"'6 ANÁLISE QUALITATIVA'!B21","v":2000},null,null,null,null,null,{"$f":"'6 ANÁLISE QUALITATIVA'!D21","v":2022}]
[{"$f":"(D9+D10+D11+D12+D13+D14-6)/24","v":0.20833333333333334},null,null,null,null,null,{"$f":"(E9+E10+E11+E12+E13+E14-6)/24","v":0.875}]

{"sheet":"PROTAGONISMO DA JUVENTU","index":15,"n_rows":17,"n_cols":8,"rows_kept":17,"cut":false,"hidden":false,"merged":[[0,2,2,8],[6,0,7,2],[6,5,7,6],[6,7,7,8],[8,0,8,2],[8,5,8,6],[8,7,8,8],[9,0,9,2],[9,5,9,6],[9,7,9,8],[10,0,10,2],[10,5,10,6],[10,7,10,8],[11,0,11,2],[11,5,11,6],[11,7,11,8],[12,0,12,2],[12,5,12,6],[12,7,12,8],[14,0,14,8],[15,0,15,5],[16,0,16,5],[15,6,15,8],[16,6,16,8]]}
[null,null,"PROTAGONISMO DA JUVENTUDE"]
[]
[]
[]
[]
[]
["Parâmetro",null,null,"ANO REFERÊNCIA","ANO ATUAL","MUDANÇAS E INOVAÇÕES NO PERÍODO",null,"JUSTIFICATIVAS"]
[null,null,null,{"$f":"'6 ANÁLISE QUALITATIVA'!B21","v":2000},{"$f":"'6 ANÁLISE QUALITATIVA'!D21","v":2022}]
["Participação em espaços de aprendizagem",null,null,3,2]
["Participação nas decisões de gestão do agroecossistema",null,null,4,2]
["Participação em espaços político-organizativos",null,null,1,2]
["Acesso à políticas públicas",null,null,5,2]
["Autonomia econômica",null,null,3,2]
[]
["ÍNDICE DE PROTAGONISMO DA JUVENTUDE (0-1)"]
[{"$f":"'6 ANÁLISE QUALITATIVA'!B21","v":2000},null,null,null,null,null,{"$f":"'6 ANÁLISE QUALITATIVA'!D21","v":2022}]
[{"$f":"(SUM(D9:D13)-5)*1/20","v":0.55000000000000004},null,null,null,null,null,{"$f":"(SUM(E9:E13)-5)*1/20","v":0.25}]

{"sheet":"SÍNTESE","index":16,"n_rows":17,"n_cols":6,"rows_kept":17,"cut":false,"hidden":false,"merged":[[0,1,2,3],[11,0,11,1],[12,0,12,1],[9,0,9,1],[10,0,10,1],[6,0,7,1],[8,0,8,1],[13,0,14,3],[15,0,15,1],[15,2,15,3],[16,0,16,1],[16,2,16,3]]}
[null,"SÍNTESE"]
[]
[]
[]
[]
[]
["Parâmetro",null,"ANO REFERÊNCIA","ANO ATUAL"]
[null,null,{"$f":"'6 ANÁLISE QUALITATIVA'!B21","v":2000},{"$f":"'6 ANÁLISE QUALITATIVA'!D21","v":2022}]
["AUTONOMIA",null,{"$f":"AUTONOMIA!A27","v":0.23214285714285715},{"$f":"AUTONOMIA!G27","v":0.9642857142857143}]
["RESPONSIVIDADE",null,{"$f":"RESPONSIVIDADE!A17","v":0.15},{"$f":"RESPONSIVIDADE!G17","v":1}]
["INTEGRAÇÃO SOCIAL",null,{"$f":"'INTEGRAÇÃO SOCIAL'!A17","v":0.4},{"$f":"'INTEGRAÇÃO SOCIAL'!G17","v":0.65}]
["PROTAGONISMO DAS MULHERES",null,{"$f":"'PROTAGONISMO DAS MULHERES'!A18","v":0.20833333333333334},{"$f":"'PROTAGONISMO DAS MULHERES'!G18","v":0.875}]
["PROTAGONISMO DA JUVENTUDE",null,{"$f":"'PROTAGONISMO DA JUVENTU'!A17","v":0.55000000000000004},{"$f":"'PROTAGONISMO DA JUVENTU'!G17:I17","v":0.25},0,0]
["ÍNDICE DE SÍNTESE (0-1)"]
[]
[{"$f":"'6 ANÁLISE QUALITATIVA'!B21","v":2000},null,{"$f":"'6 ANÁLISE QUALITATIVA'!D21","v":2022}]
[{"$f":"(C9+C10+C11+C12+C13)/5","v":0.30809523809523809},null,{"$f":"(D9+D10+D11+D12+D13)/5","v":0.74785714285714289}]